lending/lending_fUSD_20250621
["ID","MTS","AMOUNT","RATE_DAILY","PERIOD"]
[366831608,1750491038216,-500.0,0.00011973,2]
[366831609,1750491038225,-500.0,0.00011973,2]
[366831610,1750491038235,-500.0,0.00011973,2]
[366831611,1750491038244,-500.0,0.00011973,2]
[366831612,1750491038253,-500.0,0.00011973,2]
[366831613,1750491038262,-500.0,0.00011973,2]
[366831614,1750491038272,-500.0,0.00011973,2]
[366831615,1750491038281,-500.0,0.00011973,2]
[366831616,1750491038291,-500.0,0.00011973,2]
[366831617,1750491038300,-500.0,0.00011973,2]
[366831618,1750491038309,-500.0,0.00011973,2]
[366831619,1750491038318,-500.0,0.00011973,2]
[366831620,1750491038328,-500.0,0.00011973,2]
[366831621,1750491038338,-680.76716426,0.0001199,2]
[366831622,1750491038347,-680.76716426,0.0001199,2]
[366831623,1750491038356,-680.76716426,0.0001199,2]
[366831624,1750491038367,-201.0,0.00011997,2]
[366831625,1750491038376,-1041.20232884,0.00011999,3]
[366831626,1750491038386,-467.97329873,0.00011999,2]
[366831627,1750491038396,-252.19513305,0.00011999,2]
[366831628,1750491038406,-500.0,0.00011999,2]
[366831629,1750491038415,-454.00919476,0.00011999,2]
[366831630,1750491038425,-500.0,0.00011999,2]
[366831631,1750491038434,-500.0,0.00011999,2]
[366831632,1750491038444,-4076167.31683633,0.00012,2]
[366831633,1750491038453,-157.57521436,0.00012,2]
[366831634,1750491038462,-200.0,0.00012,2]
[366831635,1750491038472,-570.389352,0.00012,2]
[366831636,1750491038481,-200.0,0.00012,2]
[366831637,1750491038490,-4334381.39729945,0.00012,2]
[366831638,1750491038499,-3513.01877,0.00012,2]
[366831639,1750491038509,-7000.0,0.0001202,2]
[366831640,1750491038518,-7000.0,0.0001205,2]
[366831641,1750491038528,-7000.0,0.0001209,2]
[366831642,1750491038537,-7000.0,0.0001211,2]
[366831643,1750491038547,-200.0,0.0001212,2]
[366831644,1750491038557,-200.0,0.0001212,2]
[366831645,1750491038567,-7000.0,0.0001215,2]
[366831646,1750491038577,-7000.0,0.0001218,2]
[366831647,1750491038586,-300.0,0.00012234,2]
[366831648,1750491038596,-200.0,0.00012241,2]
[366831649,1750491038605,-200.0,0.00012241,2]
[366831650,1750491038615,-676.21,0.00012267,2]
[366831651,1750491038624,-157.38,0.00012307,2]
[366831652,1750491038633,-3513.01878,0.0001232,2]
[366831653,1750491038642,-455.59440948,0.00012329,2]
[366831654,1750491038652,-200.0,0.00012364,2]
[366831664,1750491038888,-200.0,0.00012364,2]
[366831666,1750491038902,-157.38,0.00012368,2]
[366831668,1750491038911,-222.1095995,0.00012475,2]
[366831670,1750491038920,-200.0,0.00012487,2]
[366831671,1750491038930,-200.0,0.00012487,2]
[366831672,1750491038939,-151.41,0.000125,2]
[366831673,1750491038948,-151.41,0.000125,2]
[366831674,1750491038958,-151.41,0.000125,2]
[366831675,1750491038967,-151.41,0.000125,2]
[366831676,1750491038976,-151.41,0.000125,2]
[366831677,1750491038986,-151.41,0.000125,2]
[366831678,1750491038995,-151.41,0.000125,2]
[366831679,1750491039005,-151.41,0.000125,2]
[366831680,1750491039014,-151.41,0.000125,2]
[366831681,1750491039024,-151.41,0.000125,2]
[366831682,1750491039033,-151.41,0.000125,2]
[366831683,1750491039042,-151.41,0.000125,2]
[366831684,1750491039051,-151.41,0.000125,2]
[366831685,1750491039060,-151.41,0.000125,2]
[366831686,1750491039070,-151.41,0.000125,2]
[366831687,1750491039080,-151.41,0.000125,2]
[366831688,1750491039089,-151.41,0.000125,2]
[366831689,1750491039098,-151.41,0.000125,2]
[366831690,1750491039107,-151.41,0.000125,2]
[366831691,1750491039117,-151.41,0.000125,2]
[366831692,1750491039129,-151.41,0.000125,2]
[366831693,1750491039139,-151.41,0.000125,2]
[366831694,1750491039148,-151.41,0.000125,2]
[366831695,1750491039158,-151.41,0.000125,2]
[366831696,1750491039167,-151.41,0.000125,2]
[366831697,1750491039176,-151.41,0.000125,2]
[366831698,1750491039186,-151.41,0.000125,2]
[366831699,1750491039195,-151.41,0.000125,2]
[366831700,1750491039205,-151.41,0.000125,2]
[366831701,1750491039215,-151.41,0.000125,2]
[366831702,1750491039225,-151.41,0.000125,2]
[366831703,1750491039234,-151.41,0.000125,2]
[366831704,1750491039244,-151.41,0.000125,2]
[366831705,1750491039253,-151.41,0.000125,2]
[366831706,1750491039263,-151.41,0.000125,2]
[366831707,1750491039272,-151.41,0.000125,2]
[366831708,1750491039281,-151.41,0.000125,2]
[366831709,1750491039291,-151.41,0.000125,2]
[366831710,1750491039301,-151.41,0.000125,2]
[366831711,1750491039310,-151.41,0.000125,2]
[366831712,1750491039319,-151.41,0.000125,2]
[366831713,1750491039329,-151.41,0.000125,2]
[366831714,1750491039338,-151.41,0.000125,2]
[366831715,1750491039348,-151.41,0.000125,2]
[366831716,1750491039357,-151.41,0.000125,2]
[366831717,1750491039367,-151.41,0.000125,2]
[366831718,1750491039376,-151.41,0.000125,2]
[366831719,1750491039386,-151.41,0.000125,2]
[366831720,1750491039396,-151.41,0.000125,2]
[366831721,1750491039406,-151.41,0.000125,2]
[366831722,1750491039416,-151.41,0.000125,2]
[366831723,1750491039425,-151.41,0.000125,2]
[366831724,1750491039435,-151.41,0.000125,2]
[366831725,1750491039445,-151.41,0.000125,2]
[366831726,1750491039455,-151.41,0.000125,2]
[366831727,1750491039464,-151.41,0.000125,2]
[366831728,1750491039473,-151.41,0.000125,2]
[366831729,1750491039483,-151.41,0.000125,2]
[366831730,1750491039492,-151.41,0.000125,2]
[366831731,1750491039502,-151.41,0.000125,2]
[366831732,1750491039511,-151.41,0.000125,2]
[366831733,1750491039522,-151.41,0.000125,2]
[366831734,1750491039531,-151.41,0.000125,2]
[366831735,1750491039541,-151.41,0.000125,2]
[366831736,1750491039550,-391.82097255,0.00012521,2]
[366831737,1750491039561,-1000.0,0.00012521,2]
[366831738,1750491039572,-1000.0,0.00012521,2]
[366831739,1750491039581,-1000.0,0.00012521,2]
[366831740,1750491039591,-473.63135016,0.00012521,2]
[366831741,1750491039600,-1000.0,0.00012521,2]
[366831742,1750491039610,-1000.0,0.00012521,2]
[366831743,1750491039620,-1000.0,0.00012521,2]
[366831744,1750491039630,-1000.0,0.00012521,2]
[366831745,1750491039640,-500.0,0.00012521,2]
[366831746,1750491039650,-1000.0,0.00012521,2]
[366831747,1750491039659,-1000.0,0.00012521,2]
[366831748,1750491039669,-201.0,0.00012605,3]
[366831749,1750491039679,-167.78,0.0001263,2]
[366831750,1750491039689,-354.87,0.00012636,2]
[366831751,1750491039699,-1401.39,0.00012655,2]
[366831752,1750491039709,-3350.81,0.00012752,2]
[366831753,1750491039719,-1798.28,0.00012752,2]
[366831754,1750491039728,-300.0,0.00012758,2]
[366831755,1750491039738,-2500.0,0.0001276,2]
[366831756,1750491039747,-250.0,0.0001276,2]
[366831757,1750491039756,-2500.0,0.0001276,2]
[366831758,1750491039766,-250.0,0.0001276,2]
[366831759,1750491039775,-845.9,0.00012787,2]
[366831760,1750491039786,-2500.0,0.0001279,2]
[366831761,1750491039796,-249.13,0.00012814,2]
[366831762,1750491039805,-1000.0,0.00012817,2]
[366831763,1750491039816,-3513.01877,0.0001282,2]
[366831764,1750491039826,-200.0,0.00012881,2]
[366831765,1750491039836,-477.77487919,0.00012893,2]
[366831766,1750491039845,-600.0,0.000129,4]
[366831767,1750491039855,-151.20632187,0.00012917,2]
[366831768,1750491039865,-1680.0,0.00012979,2]
[366831769,1750491039874,-317.8949873,0.00013068,2]
[366831772,1750491039884,-1500.0,0.00013068,2]
[366831775,1750491039894,-1500.0,0.00013068,2]
[366831778,1750491039903,-1500.0,0.00013068,2]
[366831781,1750491039913,-1500.0,0.00013068,2]
[366831785,1750491039923,-1500.0,0.00013068,2]
[366831788,1750491039932,-1500.0,0.00013068,2]
[366831789,1750491039943,-1500.0,0.00013068,2]
[366831790,1750491039952,-1500.0,0.00013068,2]
[366831791,1750491039963,-173.26,0.00013137,2]
[366831792,1750491039973,-201.0,0.00013212,4]
[366831793,1750491039983,-568.97,0.00013278,2]
[366831794,1750491039993,-3513.01878,0.0001332,2]
[366831795,1750491040004,-167.14,0.00013346,2]
[366831796,1750491040013,-163.92,0.000134,2]
[366831797,1750491040023,-5800.0,0.00013444,2]
[366831799,1750491040033,-5800.0,0.00013452,2]
[366831801,1750491040043,-5800.0,0.00013452,2]
[366831803,1750491040053,-5800.0,0.00013461,2]
[366831805,1750491040062,-5800.0,0.00013461,2]
[366831806,1750491040072,-5800.0,0.00013469,2]
[366831808,1750491040082,-5800.0,0.00013469,2]
[366831810,1750491040091,-5800.0,0.00013478,2]
[366831812,1750491040101,-5800.0,0.00013478,2]
[366831814,1750491040111,-5800.0,0.00013486,2]
[366831816,1750491040121,-5800.0,0.00013486,2]
[366831818,1750491040136,-5800.0,0.00013495,2]
[366831820,1750491040145,-5800.0,0.00013503,2]
[366831822,1750491040155,-5800.0,0.00013512,2]
[366831824,1750491040166,-5800.0,0.0001352,2]
[366831826,1750491040180,-5800.0,0.00013529,2]
[366831828,1750491040190,-5800.0,0.00013537,2]
[366831829,1750491040199,-2000.0,0.00013616,2]
[366831831,1750491040210,-1526.13176202,0.00013616,2]
[366831833,1750491040222,-500.0,0.00013616,2]
[366831835,1750491040231,-2000.0,0.00013616,2]
[366831837,1750491040241,-2000.0,0.00013616,2]
[366831839,1750491040251,-2000.0,0.00013616,2]
[366831841,1750491040260,-1608.26773967,0.00013616,2]
[366831843,1750491040270,-1096.13845881,0.00013616,2]
[366831845,1750491040280,-515.03102305,0.0001365,2]
[366831847,1750491040289,-344.07,0.00013698,2]
[366831849,1750491040299,-344.94,0.00013699,2]
[366831851,1750491040309,-255.04,0.00013699,2]
[366831853,1750491040319,-200.0,0.00013699,2]
[366831855,1750491040328,-500.0,0.00013699,2]
[366831857,1750491040337,-500.0,0.00013699,2]
[366831859,1750491040346,-442.80268767,0.00013699,2]
[366831861,1750491040356,-500.0,0.00013699,2]
[366831863,1750491040366,-500.0,0.00013699,2]
[366831865,1750491040376,-500.0,0.00013699,2]
[366831867,1750491040386,-3513.01877,0.0001382,2]
[366831868,1750491040396,-201.0,0.0001382,4]
[366831871,1750491040409,-151.20632187,0.00013933,2]
[366831873,1750491040420,-151.0,0.00014049,2]
[366831874,1750491040430,-697.65029927,0.00014067,2]
[366831876,1750491040440,-151.0,0.00014069,2]
[366831877,1750491040449,-151.0,0.00014069,2]
[366831879,1750491040459,-151.0,0.00014077,2]
[366831880,1750491040468,-151.0,0.00014078,2]
[366831881,1750491040476,-151.0,0.00014081,2]
[366831883,1750491040485,-151.0,0.00014081,2]
[366831885,1750491040494,-2500.0,0.00014164,2]
[366831886,1750491040503,-189.39405715,0.00014164,2]
[366831887,1750491040512,-2500.0,0.00014164,2]
[366831889,1750491040521,-2500.0,0.00014164,2]
[366831890,1750491040529,-845.9,0.00014208,2]
[366831892,1750491040538,-2351.0,0.00014277,2]
[366831893,1750491040547,-3513.01878,0.0001432,2]
[366831895,1750491040556,-173.26,0.00014332,2]
[366831896,1750491040565,-1000.0,0.00014419,2]
[366831898,1750491040574,-201.0,0.00014428,5]
[366831899,1750491040582,-568.97,0.00014606,2]
[366831901,1750491040591,-3000.0,0.00014712,2]
[366831902,1750491040600,-3000.0,0.00014712,2]
[366831904,1750491040609,-3000.0,0.00014712,2]
[366831905,1750491040617,-505.12,0.00014745,2]
[366831907,1750491040627,-163.92,0.00014889,2]
[366831908,1750491040636,-151.20632187,0.0001495,2]
[366831910,1750491040647,-500.0,0.00014973,2]
[366831912,1750491040658,-500.0,0.00014973,2]
[366831913,1750491040668,-666.0,0.00014999,2]
[366831915,1750491040679,-358626.6675933,0.00015,7]
[366831917,1750491040690,-250.0,0.00015,2]
[366831918,1750491040701,-16569.98254372,0.00015,2]
[366831920,1750491040710,-201.0,0.00015035,6]
[366831922,1750491040721,-344.07,0.00015068,2]
[366831923,1750491040731,-300.0,0.00015068,2]
[366831925,1750491040742,-3500.0,0.0001526,2]
[366831926,1750491040752,-3500.0,0.0001526,2]
[366831928,1750491040762,-3016.79323453,0.0001526,2]
[366831930,1750491040772,-166.57,0.00015358,2]
[366831931,1750491040782,-515.03102305,0.000154,2]
[366831933,1750491040793,-500.0,0.00015433,2]
[366831935,1750491040803,-500.0,0.00015433,2]
[366831936,1750491040813,-505.49536023,0.00015433,2]
[366831938,1750491040823,-500.0,0.00015433,2]
[366831939,1750491040834,-500.0,0.00015433,2]
[366831941,1750491040844,-503.73045852,0.00015433,2]
[366831943,1750491040854,-588.41787953,0.00015433,2]
[366831944,1750491040864,-500.0,0.00015433,2]
[366831946,1750491040873,-522.88828695,0.00015521,2]
[366831947,1750491040884,-669.44285684,0.00015521,2]
[366831949,1750491040894,-845.9,0.00015628,2]
[366831951,1750491040905,-201.0,0.00015643,7]
[366831953,1750491040915,-3292.0,0.00015704,2]
[366831954,1750491040925,-4000.0,0.00015808,2]
[366831956,1750491040935,-298.46020732,0.00015808,2]
[366831958,1750491040945,-568.97,0.00015934,2]
[366831960,1750491040955,-151.20632187,0.00015967,2]
[366831961,1750491040964,-1000.0,0.00015981,2]
[366831963,1750491040974,-1000.0,0.00015981,2]
[366831965,1750491040983,-1000.0,0.00015981,2]
[366831966,1750491040993,-1000.0,0.00015981,2]
[366831968,1750491041003,-1000.0,0.00015981,2]
[366831969,1750491041013,-43112.7330926,0.00016,2]
[366831970,1750491041023,-1000.0,0.00016022,2]
[366831971,1750491041033,-166.57,0.00016203,2]
[366831972,1750491041043,-697.65029927,0.00016233,2]
[366831973,1750491041053,-224343.02020209,0.0001625,2]
[366831974,1750491041063,-201.0,0.00016251,7]
[366831975,1750491041075,-200.0,0.0001634,2]
[366831977,1750491041085,-2005.59730553,0.00016356,2]
[366831978,1750491041096,-163.92,0.00016378,2]
[366831980,1750491041106,-344.07,0.00016438,2]
[366831982,1750491041122,-300.0,0.00016438,2]
[366831984,1750491041136,-1500.0,0.00016529,2]
[366831986,1750491041147,-1500.0,0.00016529,2]
[366831988,1750491041158,-502.73633782,0.00016529,2]
[366831990,1750491041168,-724.39507597,0.00016529,2]
[366831992,1750491041179,-1500.0,0.00016529,2]
[366831994,1750491041189,-349.78887474,0.000166,2]
[366831995,1750491041199,-187.13,0.00016712,2]
[366831997,1750491041211,-500.0,0.0001674,2]
[366831999,1750491041221,-201.0,0.00016858,8]
[366832001,1750491041230,-151.20632187,0.00016983,2]
[366832003,1750491041239,-166.65,0.00016996,2]
[366832005,1750491041248,-5000.0,0.00017,2]
[366832006,1750491041258,-300.0,0.00017,2]
[366832008,1750491041267,-834.26476573,0.00017,7]
[366832010,1750491041277,-166.57,0.00017048,2]
[366832012,1750491041287,-845.9,0.00017049,2]
[366832014,1750491041301,-2000.0,0.00017077,2]
[366832016,1750491041311,-500.46109237,0.00017077,2]
[366832018,1750491041321,-2000.0,0.00017077,2]
[366832019,1750491041331,-515.03102305,0.0001715,2]
[366832021,1750491041340,-2000.0,0.000172,2]
[366832023,1750491041351,-500.0,0.00017217,2]
[366832025,1750491041361,-4609.0,0.00017275,2]
[366832027,1750491041371,-201.0,0.00017466,9]
[366832029,1750491041381,-200.0,0.00017479,2]
[366832031,1750491041391,-1000.0,0.00017624,2]
[366832033,1750491041401,-2500.0,0.00017625,2]
[366832035,1750491041411,-542.85112287,0.00017625,2]
[366832037,1750491041420,-1000.0,0.00017765,2]
[366832039,1750491041430,-344.07,0.00017808,2]
[366832041,1750491041440,-163.92,0.00017867,2]
[366832043,1750491041450,-166.57,0.00017893,2]
[366832045,1750491041459,-181.22,0.000179,2]
[366832047,1750491041469,-300.0,0.00017999,2]
[366832049,1750491041479,-300.0,0.00017999,2]
[366832051,1750491041490,-300.0,0.00017999,2]
[366832053,1750491041500,-24189.91728712,0.00018,2]
[366832055,1750491041510,-602204.16888394,0.00018,2]
[366832056,1750491041520,-1156.17576801,0.00018,2]
[366832057,1750491041530,-151.20632187,0.00018,2]
[366832058,1750491041539,-201.0,0.00018074,9]
[366832059,1750491041549,-1729.2191068,0.000181,2]
[366832060,1750491041751,-1152.61362648,0.00018173,2]
[366832061,1750491041761,-654.08962246,0.00018313,2]
[366832062,1750491041771,-697.65029927,0.000184,2]
[366832063,1750491041780,-201.0,0.00018681,10]
[366832064,1750491041791,-324.7147249,0.000189,2]
[366832065,1750491041801,-515.03102305,0.000189,2]
[366832066,1750491041810,-154.13207597,0.000189,2]
[366832067,1750491041820,-171.4,0.00018953,2]
[366832068,1750491041830,-500.0,0.00018973,2]
[366832069,1750491041840,-500.0,0.00018973,2]
[366832070,1750491041850,-500.0,0.00018973,2]
[366832071,1750491041859,-500.0,0.00018973,2]
[366832072,1750491041868,-500.0,0.00018973,2]
[366832073,1750491041877,-500.36530453,0.00018973,2]
[366832074,1750491041887,-500.0,0.00018973,2]
[366832075,1750491041896,-500.0,0.00018973,2]
[366832076,1750491041906,-500.0,0.00018973,2]
[366832077,1750491041916,-500.0,0.00018973,2]
[366832078,1750491041926,-500.0,0.00018973,2]
[366832079,1750491041935,-668.82769162,0.00018999,2]
[366832080,1750491041946,-300.0,0.00018999,2]
[366832081,1750491041957,-678.42737161,0.00018999,2]
[366832082,1750491041967,-675.02493238,0.00019,2]
[366832083,1750491041978,-675.02493238,0.00019,2]
[366832084,1750491041988,-287560.15691091,0.00019,2]
[366832085,1750491041998,-287560.15691091,0.00019,2]
[366832086,1750491042008,-287560.15691091,0.00019,2]
[366832087,1750491042018,-350.0,0.00019,2]
[366832088,1750491042027,-4025.88852069,0.00019,2]
[366832089,1750491042039,-4529.0,0.00019002,2]
[366832090,1750491042051,-344.07,0.00019178,2]
[366832091,1750491042061,-666.0,0.00019178,2]
[366832092,1750491042071,-169.87,0.00019178,2]
[366832093,1750491042080,-1000.0,0.00019226,2]
[366832094,1750491042091,-201.0,0.00019289,11]
[366832095,1750491042103,-150.0,0.00019289,2]
[366832096,1750491042113,-150.0,0.00019289,2]
[366832097,1750491042124,-150.0,0.00019289,2]
[366832098,1750491042136,-150.0,0.00019289,2]
[366832099,1750491042146,-150.0,0.00019289,2]
[366832100,1750491042155,-150.0,0.00019289,2]
[366832101,1750491042165,-150.0,0.00019289,2]
[366832102,1750491042175,-150.0,0.00019289,2]
[366832103,1750491042185,-150.0,0.00019289,2]
[366832104,1750491042195,-150.0,0.00019289,2]
[366832105,1750491042205,-150.0,0.00019289,2]
[366832106,1750491042215,-16261.28649585,0.00019333,2]
[366832107,1750491042225,-258.32226102,0.00019399,2]
[366832108,1750491042234,-901616.1776364,0.000194,2]
[366832111,1750491044131,-501.05592778,0.00012364,2]
[366832112,1750491044312,-151.0,0.00012368,2]
[366832113,1750491044355,-20592.04109341,0.000194,2]
[366832114,1750491044365,-779.36204801,0.00019521,2]
[366832115,1750491044376,-1000.0,0.00019521,2]
[366832116,1750491044387,-1000.0,0.00019521,2]
[366832117,1750491044397,-1000.0,0.00019521,2]
[366832118,1750491044408,-1080.98232905,0.00019521,2]
[366832119,1750491044418,-616.62331799,0.00019521,2]
[366832120,1750491044427,-1000.0,0.00019521,2]
[366832121,1750491044437,-1000.0,0.00019521,2]
[366832122,1750491044447,-623.86275756,0.00019521,2]
[366832123,1750491044459,-376.13724244,0.00019521,2]
[366832124,1750491044468,-326.28200256,0.00019521,2]
[366832125,1750491044613,-151.0,0.00014039,2]
[366832126,1750491044623,-673.71799744,0.00019521,2]
[366832127,1750491044633,-201.0,0.00019896,12]
[366832128,1750491044643,-2000.0,0.000199,2]
[366832129,1750491044653,-1048.15196136,0.000199,2]
[366832130,1750491044663,-24773.09803582,0.00019985,2]
[366832131,1750491044674,-24739.38866854,0.0001999,2]
[366832132,1750491045635,-151.0,0.00019521,2]
[366832133,1750491045644,-501.05592778,0.00019521,2]
[366832134,1750491045654,-12984.25664858,0.0001999,2]
[366832135,1750491045742,-146.14927402,0.0001999,2]
[366832136,1750491045754,-489.2123235,0.0002,2]
[366832137,1750491045763,-1462.23840248,0.0002,2]
[366832139,1750491045775,-2188.6,0.0002,2]
[366832173,1750491046854,-570.093,0.0002,2]
[366832174,1750491047006,-1747.47024735,0.0002,2]
[366832175,1750491381061,-556.59,0.00013699,2]
[366832176,1750491381085,-600.0,0.00014044,4]
[366832177,1750491381109,-600.0,0.00014576,4]
[366832178,1750491381132,-250.0,0.00014576,2]
[366832179,1750491381154,-945.55433847,0.00015068,2]
[366832180,1750491381177,-600.0,0.00015068,4]
[366832181,1750491439281,-600.0,0.00015556,4]
[366832182,1750491439311,-250.0,0.00015556,2]
[366832183,1750491439341,-250.0,0.00015755,2]
[366832184,1750491529621,278.64,0.00013698,2]
[366832185,1750491529877,278.64,0.00015068,2]
[366832186,1750491731994,250.0,0.00015,2]
[366832187,1750491846075,166.86486124,0.0001388,2]
[366832188,1750491852467,1384.90711994,0.00015,2]
[366832189,1750492086135,200.0,0.00014925,2]
[366832200,1750492232045,-600.0,0.00015828,4]
[366832201,1750492232559,-6.51776626,0.00015829,4]
[366832202,1750492232587,-593.48223374,0.00015829,4]
[366832203,1750492232597,-2500.0,0.00015829,2]
[366832204,1750492232608,-250.0,0.00015829,2]
[366832205,1750492232618,-600.0,0.00016381,4]
[366832206,1750492232628,-1200.0,0.00016435,2]
[366832207,1750492232638,-278.64,0.00016438,2]
[366832208,1750492232648,-187.13,0.00016712,2]
[366832209,1750492232657,-300.0,0.00017,2]
[366832210,1750492232667,-151.0,0.00017247,2]
[366832211,1750492232677,-151.0,0.00017252,2]
[366832212,1750492232687,-151.0,0.00017262,2]
[366832213,1750492232696,-300.0,0.0001741,2]
[366832214,1750492232705,-600.0,0.00017411,4]
[366832215,1750492232715,-600.0,0.00017411,4]
[366832216,1750492232726,-500.0,0.00017479,2]
[366832217,1750492232736,-202.0,0.00017504,2]
[366832218,1750492232746,-1000.0,0.00017717,2]
[366832219,1750492232756,-200.0,0.0001772,7]
[366832220,1750492232766,-278.64,0.00017808,2]
[366832221,1750492232775,-250.0,0.0001781,2]
[366832222,1750492232786,-860.07214482,0.00017937,2]
[366832223,1750492232796,-1200.0,0.00018051,2]
[366832224,1750492232807,-500.0,0.0001811,2]
[366832225,1750492232817,-183.25,0.0001815,2]
[366832226,1750492232827,-202.0,0.00018158,2]
[366832227,1750492232838,-860.07214482,0.00018264,2]
[366832228,1750492232848,-150.0,0.00018291,2]
[366832229,1750492232858,-166.92,0.00018357,2]
[366832230,1750492232868,-3628.34,0.00018472,2]
[366832231,1750492232878,-860.07214482,0.00018498,2]
[366832232,1750492232888,-157.1,0.00018584,2]
[366832233,1750492232898,-200.0,0.00018736,2]
[366832234,1750492232908,-202.0,0.00018812,3]
[366832235,1750492232918,-860.07214482,0.00018815,2]
[366832236,1750492232928,-860.07214482,0.00018963,2]
[366832237,1750492232938,-350.0,0.00019,2]
[366832238,1750492232948,-278.64,0.00019178,2]
[366832239,1750492232958,-169.87,0.00019178,2]
[366832240,1750492232968,-860.07214482,0.00019251,2]
[366832241,1750492232978,-500.0,0.0001937,2]
[366832242,1750492232989,-200.0,0.00019401,2]
[366832243,1750492232999,-202.0,0.00019465,4]
[366832244,1750492233009,-1491.494097,0.00019599,2]
[366832245,1750492233019,-860.07214482,0.00019715,2]
[366832246,1750492233029,-171.07641269,0.000198,2]
[366832247,1750492233039,-8977.55154151,0.0001981,2]
[366832248,1750492233049,-157.1,0.00019856,2]
[366832249,1750492233059,-16105.91554124,0.000199,2]
[366832250,1750492233069,-1000.0,0.00019931,2]
[366832251,1750492233080,-500.0,0.00019973,2]
[366832252,1750492233091,-500.0,0.00019973,2]
[366832253,1750492233101,-305.49836156,0.00019973,2]
[366832254,1750492233111,-173.74745695,0.00019973,2]
[366832255,1750492233121,-157.70480367,0.00019973,2]
[366832256,1750492233131,-484.31485661,0.00019973,2]
[366832257,1750492233141,-518.63981329,0.00019973,2]
[366832258,1750492233151,-500.35015281,0.00019973,2]
[366832259,1750492233162,-500.0,0.00019973,2]
[366832260,1750492233172,-500.0,0.00019973,2]
[366832261,1750492233182,-266.60744978,0.00019973,2]
[366832262,1750492233192,-502.47645317,0.00019973,2]
[366832263,1750492233203,-501.04773928,0.00019973,2]
[366832264,1750492233213,-500.46360171,0.00019973,2]
[366832265,1750492233223,-160.47629587,0.00019973,2]
[366832266,1750492233233,-162.81231769,0.00019973,2]
[366832267,1750492233243,-500.0,0.00019973,2]
[366832268,1750492233253,-500.0,0.00019973,2]
[366832269,1750492233263,-500.0,0.00019973,2]
[366832270,1750492233272,-500.0,0.00019973,2]
[366832271,1750492233282,-860.07214488,0.00019984,2]
[366832272,1750492233292,-326.97807641,0.00019997,2]
[366832273,1750492233302,-1001.824,0.00019997,2]
[366832274,1750492233311,-17632.08398604,0.00019998,2]
[366832275,1750492234183,-1311.84026736,0.00019998,2]
[366832276,1750492234193,-700.70499974,0.00019998,2]
[366832282,1750492240602,-151.0,0.00017239,2]
[366832283,1750492240612,-1207.50752129,0.00019998,2]
[366832285,1750492243203,-278.88730385,0.00018228,2]
[366832286,1750492243216,-142.82273672,0.00018228,2]
[366832287,1750492243237,-1956.40600739,0.00019998,2]
[366832288,1750492243259,-675.13032531,0.00019998,2]
[366832289,1750492243284,-216732.61073858,0.00019998,2]
[366832290,1750492243304,-11344.09980225,0.00019998,2]
[366832291,1750492243333,-10691.0,0.00019998,2]
[366832292,1750492243430,-310.04873224,0.00019998,2]
[366832293,1750492243444,-211.4436643,0.0002,2]
[366832294,1750492246332,-516.44963122,0.0002,2]